[Event "21th IPCA World Individual Chp."]
[Site "followchess.com"]
[Date "2022.05.10"]
[Round "3"]
[White "Gurbanov, Andrei"]
[Black "Srimskov, Elishar"]
[Result "1-0"]
[WhiteElo "2302"]
[BlackElo "1992"]
[ECO "D50"]
[WhiteFed "ISR"]
[BlackFed "ISR"]
[FCGameId "1473863177"]
[WhiteFideId "13503391"]
[BlackFideId "2807254"]
[TimeControl "5400+30"]

1. d4 {[%clk 1:29:38]} d5 {[%clk 1:30:24]} 2. c4 {[%clk 1:30:03]} e6 
{[%clk 1:30:37]} 3. Nc3 {[%clk 1:30:28]} Nf6 {[%clk 1:30:35]} 4. Bg5 
{[%clk 1:30:46]} c6 {[%clk 1:29:51]} 5. e3 {[%clk 1:30:54]} Nbd7 
{[%clk 1:28:08]} 6. cxd5 {[%clk 1:31:05]} exd5 {[%clk 1:27:33]} 7. Bd3 
{[%clk 1:31:26]} Be7 {[%clk 1:27:02]} 8. Qc2 {[%clk 1:31:30]} h6 
{[%clk 1:26:54]} 9. Bf4 {[%clk 1:29:50]} b6 {[%clk 1:18:35]} 10. Nf3 
{[%clk 1:26:42]} Bb7 {[%clk 1:15:21]} 11. h3 {[%clk 1:25:04]} Rc8 
{[%clk 1:07:36]} 12. O-O {[%clk 1:21:56]} O-O {[%clk 1:05:12]} 13. Bf5 
{[%clk 1:20:05]} Ra8 {[%clk 1:00:09]} 14. Rad1 {[%clk 1:19:12]} Ne8 
{[%clk 0:58:39]} 15. e4 {[%clk 1:16:51]} Nd6 {[%clk 0:57:27]} 16. Bxd6 
{[%clk 1:16:48]} Bxd6 {[%clk 0:57:54]} 17. e5 {[%clk 1:16:57]} Bc7 
{[%clk 0:53:12]} 18. Rfe1 {[%clk 1:16:40]} Kh8 {[%clk 0:53:17]} 19. Qd2 
{[%clk 1:14:56]} Re8 {[%clk 0:52:20]} 20. a3 {[%clk 1:11:15]} Nf8 
{[%clk 0:52:17]} 21. b4 {[%clk 1:11:31]} Bc8 {[%clk 0:51:45]} 22. Bb1 
{[%clk 1:11:28]} Be6 {[%clk 0:50:28]} 23. b5 {[%clk 1:09:59]} cxb5 
{[%clk 0:49:19]} 24. Nxb5 {[%clk 1:10:21]} a6 {[%clk 0:48:53]} 25. Nxc7 
{[%clk 1:10:45]} Qxc7 {[%clk 0:49:22]} 26. Re3 {[%clk 1:09:28]} Qe7 
{[%clk 0:47:01]} 27. Ne1 {[%clk 1:08:44]} b5 {[%clk 0:41:30]} 28. f4 
{[%clk 1:08:57]} f5 {[%clk 0:39:34]} 29. exf6 {[%clk 1:08:06]} Qxf6 
{[%clk 0:39:44]} 30. Nf3 {[%clk 1:02:13]} Bf5 {[%clk 0:37:12]} 31. Ne5 
{[%clk 1:01:51]} Bxb1 {[%clk 0:36:37]} 32. Rxb1 {[%clk 1:02:18]} Qf5 
{[%clk 0:33:33]} 33. Rf1 {[%clk 1:00:25]} Rec8 {[%clk 0:31:30]} 34. g4 
{[%clk 1:00:11]} Qc2 {[%clk 0:30:35]} 35. Qb4 {[%clk 0:59:56]} Qa4 
{[%clk 0:25:59]} 36. Qxa4 {[%clk 0:57:56]} bxa4 {[%clk 0:26:28]} 37. f5 
{[%clk 0:58:13]} Rc7 {[%clk 0:22:57]} 38. f6 {[%clk 0:58:07]} g6 39. h4 
{[%clk 0:54:37]} Kh7 40. g5 {[%clk 0:54:04]} h5 {[%clk 0:16:59]} 41. Nd3 
{[%clk 0:53:28]} Kg8 {[%clk 0:15:58]} 42. Nc5 {[%clk 0:53:20]} Kf7 
{[%clk 0:15:50]} 43. Rfe1 {[%clk 0:53:41]} Raa7 {[%clk 0:15:10]} 44. Re8 
{[%clk 0:52:57]} Nh7 {[%clk 0:13:57]} 45. Rd8 {[%clk 0:53:15]} Nf8 
{[%clk 0:10:40]} 46. Ree8 {[%clk 0:53:26]} 1-0

[Event "21th IPCA World Individual Chp."]
[Site "followchess.com"]
[Date "2022.05.10"]
[Round "3"]
[White "Lipilin, Ilia"]
[Black "Aleksandrova, Aleksandra"]
[Result "1-0"]
[WhiteElo "2198"]
[BlackElo "1687"]
[ECO "D31"]
[WhiteFed "RUS"]
[BlackFed "ISR"]
[FCGameId "314637102"]
[WhiteFideId "54113245"]
[BlackFideId "4144198"]
[TimeControl "5400+30"]

1. d4 {[%clk 1:30:57]} d5 {[%clk 1:30:38]} 2. c4 {[%clk 1:31:19]} e6 
{[%clk 1:31:00]} 3. Nc3 {[%clk 1:31:41]} c6 {[%clk 1:31:15]} 4. e4 
{[%clk 1:32:02]} dxe4 {[%clk 1:31:39]} 5. Nxe4 {[%clk 1:32:25]} Nf6 
{[%clk 1:31:55]} 6. Nxf6+ {[%clk 1:32:46]} Qxf6 {[%clk 1:32:09]} 7. Nf3 
{[%clk 1:33:04]} Bb4+ {[%clk 1:32:10]} 8. Bd2 {[%clk 1:33:24]} Bxd2+ 
{[%clk 1:31:40]} 9. Qxd2 {[%clk 1:33:50]} O-O {[%clk 1:31:29]} 10. Bd3 
{[%clk 1:34:11]} Nd7 {[%clk 1:31:07]} 11. O-O {[%clk 1:34:26]} e5 
{[%clk 1:30:01]} 12. dxe5 {[%clk 1:30:31]} Nxe5 {[%clk 1:30:06]} 13. Nxe5 
{[%clk 1:30:51]} Qxe5 {[%clk 1:30:31]} 14. Rfe1 {[%clk 1:31:09]} Qf6 
{[%clk 1:29:47]} 15. Qb4 {[%clk 1:30:22]} Rd8 {[%clk 1:26:24]} 16. Re3 
{[%clk 1:26:31]} a5 {[%clk 1:22:23]} 17. Qb6 {[%clk 1:26:17]} Be6 
{[%clk 1:07:30]} 18. Qxb7 {[%clk 1:20:15]} Rab8 {[%clk 1:07:28]} 19. Qxc6 
{[%clk 1:20:32]} Rxb2 {[%clk 1:01:18]} 20. Rf1 {[%clk 1:19:21]} g6 
{[%clk 0:54:24]} 21. a4 {[%clk 1:17:32]} Rd2 {[%clk 0:53:10]} 22. Be2 
{[%clk 1:11:30]} Qb2 {[%clk 0:43:09]} 23. Bf3 {[%clk 1:07:35]} Rxf2 
{[%clk 0:32:42]} 24. Rfe1 {[%clk 0:53:49]} Rfd2 {[%clk 0:12:15]} 25. Qb5 
{[%clk 0:48:40]} Qd4 {[%clk 0:10:37]} 26. Qxa5 {[%clk 0:47:29]} Rd3 
{[%clk 0:09:43]} 27. Qe5 {[%clk 0:46:28]} Rxe3 {[%clk 0:08:35]} 28. Qxe3 
{[%clk 0:45:32]} Qxc4 {[%clk 0:08:08]} 29. a5 {[%clk 0:45:39]} Bd5 
{[%clk 0:06:27]} 30. Rd1 {[%clk 0:45:24]} Qa2 {[%clk 0:01:41]} 31. Qd2 
{[%clk 0:44:25]} Ra8 {[%clk 0:01:04]} 32. Qxa2 {[%clk 0:44:40]} 1-0

[Event "21th IPCA World Individual Chp."]
[Site "followchess.com"]
[Date "2022.05.10"]
[Round "3"]
[White "Alperovich, Asher"]
[Black "Valenta, Vit Vaclav"]
[Result "0-1"]
[WhiteElo "1865"]
[BlackElo "2014"]
[ECO "E76"]
[WhiteFed "ISR"]
[BlackFed "CZE"]
[FCGameId "982562007"]
[WhiteFideId "2803275"]
[BlackFideId "307440"]
[TimeControl "5400+30"]

1. d4 {[%clk 1:30:28]} c5 {[%clk 1:30:36]} 2. d5 {[%clk 1:30:47]} d6 
{[%clk 1:30:58]} 3. c4 {[%clk 1:31:07]} Nf6 {[%clk 1:31:16]} 4. Nc3 
{[%clk 1:31:28]} g6 {[%clk 1:31:41]} 5. e4 {[%clk 1:31:29]} Bg7 {[%clk 1:32:05]} 
6. f4 {[%clk 1:31:51]} O-O 7. Nf3 {[%clk 1:32:15]} a6 {[%clk 1:31:35]} 8. a4 
{[%clk 1:30:55]} e5 {[%clk 1:19:43]} 9. fxe5 {[%clk 1:28:27]} dxe5 
{[%clk 1:19:58]} 10. Bg5 {[%clk 1:26:57]} h6 {[%clk 1:18:48]} 11. Bh4 Nbd7 
{[%clk 1:15:57]} 12. Bd3 {[%clk 1:25:40]} Re8 {[%clk 1:08:56]} 13. O-O 
{[%clk 1:24:41]} g5 {[%clk 1:08:53]} 14. Bg3 {[%clk 1:20:24]} Nh5 
{[%clk 1:03:11]} 15. Be1 {[%clk 1:14:03]} Nf4 {[%clk 1:03:15]} 16. Bc2 
{[%clk 1:10:55]} Nf6 {[%clk 0:58:19]} 17. Qd2 {[%clk 1:09:33]} N6h5 
{[%clk 0:55:12]} 18. Nd1 {[%clk 1:06:34]} Bf6 {[%clk 0:52:33]} 19. h3 
{[%clk 1:01:13]} Nxg2 {[%clk 0:45:23]} 20. Qxg2 {[%clk 0:58:35]} Nf4 
{[%clk 0:45:27]} 21. Qh2 {[%clk 0:58:23]} Bxh3 {[%clk 0:41:44]} 22. Ne3 
{[%clk 0:52:55]} g4 {[%clk 0:27:58]} 23. Nf5 {[%clk 0:45:36]} gxf3 
{[%clk 0:25:19]} 24. Nxh6+ {[%clk 0:43:49]} Kh7 {[%clk 0:21:59]} 25. Rxf3 
{[%clk 0:41:46]} Kxh6 {[%clk 0:18:33]} 26. Rxh3+ {[%clk 0:36:54]} Nxh3+ 
{[%clk 0:18:42]} 27. Qxh3+ {[%clk 0:37:01]} Kg7 {[%clk 0:18:59]} 28. Qg4+ 
{[%clk 0:35:34]} Kf8 {[%clk 0:18:30]} 29. Bd2 {[%clk 0:33:28]} Ke7 
{[%clk 0:17:46]} 30. d6+ {[%clk 0:29:29]} Qxd6 {[%clk 0:17:30]} 0-1

[Event "21th IPCA World Individual Chp."]
[Site "followchess.com"]
[Date "2022.05.10"]
[Round "3"]
[White "Babanov, Aleksandr"]
[Black "Vardi, Moshe"]
[Result "1-0"]
[WhiteElo "1929"]
[BlackElo "1631"]
[ECO "C45"]
[WhiteFed "RUS"]
[BlackFed "ISR"]
[FCGameId "-288397751"]
[WhiteFideId "24117412"]
[BlackFideId "2801710"]
[TimeControl "5400+30"]

1. e4 {[%clk 1:30:53]} e5 {[%clk 1:24:44]} 2. Nf3 {[%clk 1:31:16]} Nc6 3. Nc3 
Nf6 {[%clk 1:24:13]} 4. d4 {[%clk 1:31:24]} exd4 {[%clk 1:24:00]} 5. Nxd4 
{[%clk 1:31:45]} Bc5 {[%clk 1:23:46]} 6. Nb3 {[%clk 1:29:48]} Bb6 
{[%clk 1:23:34]} 7. Qe2 {[%clk 1:28:34]} O-O {[%clk 1:23:31]} 8. Be3 
{[%clk 1:24:45]} Bxe3 {[%clk 1:22:33]} 9. Qxe3 {[%clk 1:24:58]} d6 
{[%clk 1:22:48]} 10. O-O-O {[%clk 1:19:34]} a5 {[%clk 1:19:10]} 11. a3 
{[%clk 1:17:32]} Re8 {[%clk 1:18:25]} 12. f3 {[%clk 1:16:32]} Qe7 
{[%clk 1:16:17]} 13. Qd2 {[%clk 1:14:43]} a4 {[%clk 1:10:28]} 14. Nd4 
{[%clk 1:12:59]} Nxd4 {[%clk 1:09:10]} 15. Qxd4 {[%clk 1:13:20]} Bd7 
{[%clk 1:07:28]} 16. Bc4 {[%clk 1:08:30]} Ra5 {[%clk 1:03:48]} 17. Rhe1 
{[%clk 1:05:48]} Rb8 {[%clk 0:57:31]} 18. Nd5 {[%clk 1:02:15]} Nxd5 
{[%clk 0:54:21]} 19. Bxd5 {[%clk 0:57:47]} b5 {[%clk 0:40:32]} 20. Qd2 
{[%clk 0:54:12]} Ra6 {[%clk 0:39:06]} 21. e5 {[%clk 0:51:05]} Rab6 
{[%clk 0:30:23]} 22. Qf4 {[%clk 0:39:43]} dxe5 {[%clk 0:22:49]} 23. Qxf7+ 
{[%clk 0:35:44]} Qxf7 {[%clk 0:22:15]} 24. Bxf7+ {[%clk 0:36:06]} Kxf7 
{[%clk 0:22:35]} 25. Rxd7+ {[%clk 0:36:28]} Ke6 {[%clk 0:22:14]} 26. Rxg7 
{[%clk 0:32:57]} b4 {[%clk 0:22:36]} 27. Rxh7 {[%clk 0:33:06]} bxa3 
{[%clk 0:19:28]} 28. bxa3 {[%clk 0:29:24]} Rb1+ {[%clk 0:16:50]} 29. Kd2 
{[%clk 0:29:26]} Rd8+ {[%clk 0:16:18]} 30. Ke2 {[%clk 0:29:38]} Rxe1+ 31. Kxe1 
c5 {[%clk 0:11:25]} 32. Rh6+ {[%clk 0:28:01]} Kf5 {[%clk 0:10:56]} 33. Rc6 
{[%clk 0:26:54]} Rd5 {[%clk 0:10:54]} 34. Ke2 {[%clk 0:27:12]} e4 
{[%clk 0:10:46]} 35. g4+ {[%clk 0:25:50]} Kf4 {[%clk 0:10:19]} 36. Rf6+ 
{[%clk 0:25:49]} Kg5 {[%clk 0:10:13]} 37. Rf5+ {[%clk 0:25:55]} Rxf5 
{[%clk 0:10:20]} 38. gxf5 {[%clk 0:26:15]} Kxf5 {[%clk 0:10:49]} 39. fxe4+ 
{[%clk 0:26:09]} Kxe4 {[%clk 0:11:18]} 40. Kd2 {[%clk 0:26:03]} Kd5 1-0

[Event "21th IPCA World Individual Chp."]
[Site "followchess.com"]
[Date "2022.05.10"]
[Round "3"]
[White "Mekus, Manuela"]
[Black "Shapiro, Benny"]
[Result "1/2-1/2"]
[WhiteElo "1644"]
[BlackElo "1884"]
[ECO "B20"]
[WhiteFed "GER"]
[BlackFed "ISR"]
[FCGameId "816384032"]
[WhiteFideId "16202562"]
[BlackFideId "2801582"]
[TimeControl "5400+30"]

1. e4 {[%clk 1:27:47]} c5 {[%clk 1:30:46]} 2. d3 {[%clk 1:27:22]} Nc6 
{[%clk 1:31:02]} 3. Nf3 {[%clk 1:27:22]} Nf6 {[%clk 1:30:43]} 4. g3 
{[%clk 1:27:44]} e6 {[%clk 1:30:45]} 5. Bg2 {[%clk 1:27:58]} d5 {[%clk 1:30:50]} 
6. Nbd2 {[%clk 1:27:21]} Be7 {[%clk 1:30:10]} 7. O-O {[%clk 1:27:39]} O-O 
{[%clk 1:30:23]} 8. c3 {[%clk 1:26:14]} d4 {[%clk 1:26:45]} 9. Nc4 
{[%clk 1:19:03]} Ne8 {[%clk 1:22:52]} 10. a4 {[%clk 1:13:31]} f6 
{[%clk 1:22:36]} 11. e5 {[%clk 1:09:39]} f5 {[%clk 1:21:00]} 12. h4 
{[%clk 1:08:20]} Nc7 {[%clk 1:20:11]} 13. Bg5 {[%clk 1:08:10]} Nd5 
{[%clk 1:18:09]} 14. Bxe7 {[%clk 1:07:52]} Qxe7 {[%clk 1:16:56]} 15. Rc1 
{[%clk 1:05:43]} Bd7 {[%clk 1:15:28]} 16. Ng5 {[%clk 1:01:18]} b6 
{[%clk 1:13:36]} 17. f4 {[%clk 0:55:30]} Rab8 {[%clk 1:13:06]} 18. Nd6 
{[%clk 0:52:57]} Ne3 {[%clk 1:12:06]} 19. Qh5 {[%clk 0:51:07]} g6 
{[%clk 1:11:14]} 20. Qf3 {[%clk 0:47:42]} Na5 {[%clk 1:09:24]} 21. Rf2 
{[%clk 0:46:04]} Bxa4 {[%clk 1:07:01]} 22. cxd4 {[%clk 0:44:13]} cxd4 
{[%clk 1:07:04]} 23. Bf1 {[%clk 0:43:57]} Bb3 {[%clk 1:05:57]} 24. h5 
{[%clk 0:43:42]} Bd5 {[%clk 1:05:55]} 25. Qe2 {[%clk 0:42:44]} Ng4 
{[%clk 1:05:48]} 26. hxg6 {[%clk 0:42:17]} hxg6 {[%clk 1:05:35]} 27. Rh2 
{[%clk 0:41:55]} Nxh2 {[%clk 1:05:14]} 28. Qxh2 {[%clk 0:42:20]} Qg7 
{[%clk 1:04:58]} 29. Bg2 {[%clk 0:42:27]} Bb3 {[%clk 1:03:44]} 30. Kf2 
{[%clk 0:41:38]} Qh8 {[%clk 1:02:27]} 31. Qxh8+ {[%clk 0:41:45]} Kxh8 
{[%clk 1:02:54]} 32. Rh1+ {[%clk 0:41:53]} Kg8 {[%clk 1:02:46]} 33. Rh7 
{[%clk 0:41:42]} Rfc8 {[%clk 1:00:55]} 34. Nxc8 {[%clk 0:40:14]} Rxc8 
{[%clk 1:01:18]} 35. Rxa7 {[%clk 0:40:20]} Rc2+ {[%clk 1:00:51]} 36. Kg1 
{[%clk 0:40:23]} Rxb2 {[%clk 1:00:29]} 37. Ra8+ {[%clk 0:40:40]} Kg7 
{[%clk 1:00:41]} 38. Ra7+ {[%clk 0:41:06]} Kf8 {[%clk 1:00:49]} 39. Rf7+ 
{[%clk 0:40:44]} Ke8 {[%clk 1:00:30]} 40. Rf6 {[%clk 0:40:56]} Kd7 
{[%clk 0:59:48]} 41. Rxg6 {[%clk 0:41:22]} b5 {[%clk 0:58:33]} 42. Rg7+ 
{[%clk 0:41:27]} Kc8 {[%clk 0:56:43]} 43. Re7 {[%clk 0:41:34]} Kd8 
{[%clk 0:51:46]} 44. Ra7 {[%clk 0:41:48]} Ra2 {[%clk 0:51:35]} 1/2-1/2

[Event "21th IPCA World Individual Chp."]
[Site "followchess.com"]
[Date "2022.05.10"]
[Round "2"]
[White "Valenta, Vit Vaclav"]
[Black "Yarmonov, Igor"]
[Result "0-1"]
[WhiteElo "2014"]
[BlackElo "2394"]
[ECO "A13"]
[WhiteFed "CZE"]
[BlackFed "UKR"]
[FCGameId "1738930075"]
[WhiteFideId "307440"]
[BlackFideId "14114496"]
[TimeControl "5400+30"]

1. Nf3 {[%clk 1:30:54]} d5 {[%clk 1:30:37]} 2. c4 {[%clk 1:31:17]} e6 
{[%clk 1:30:35]} 3. b3 {[%clk 1:31:03]} Nf6 {[%clk 1:30:56]} 4. Bb2 
{[%clk 1:31:20]} Be7 {[%clk 1:26:22]} 5. g3 {[%clk 1:31:06]} O-O 
{[%clk 1:24:51]} 6. Bg2 {[%clk 1:31:22]} Nbd7 {[%clk 1:24:34]} 7. O-O 
{[%clk 1:31:38]} b6 {[%clk 1:23:01]} 8. d3 {[%clk 1:31:00]} Bb7 {[%clk 1:23:03]} 
9. Nbd2 {[%clk 1:30:33]} a5 {[%clk 1:23:04]} 10. a4 {[%clk 1:23:48]} Bb4 
{[%clk 1:23:01]} 11. Qc2 {[%clk 1:20:17]} Re8 {[%clk 1:18:12]} 12. Rad1 
{[%clk 1:15:47]} c5 {[%clk 1:08:33]} 13. e3 {[%clk 1:14:34]} Qe7 
{[%clk 1:07:47]} 14. Nb1 {[%clk 1:10:25]} Nf8 {[%clk 1:05:32]} 15. Nc3 
{[%clk 1:08:04]} Ng6 {[%clk 1:03:31]} 16. Nb5 {[%clk 1:02:57]} Red8 
{[%clk 0:47:03]} 17. h3 {[%clk 0:56:15]} Rd7 {[%clk 0:46:53]} 18. Ne5 
{[%clk 0:36:15]} Nxe5 {[%clk 0:47:18]} 19. Bxe5 {[%clk 0:36:43]} Ne8 
{[%clk 0:46:03]} 20. Bb2 {[%clk 0:32:50]} Rad8 {[%clk 0:46:16]} 21. cxd5 
{[%clk 0:26:18]} exd5 {[%clk 0:42:59]} 22. d4 {[%clk 0:24:53]} Nc7 
{[%clk 0:40:38]} 23. dxc5 {[%clk 0:21:28]} bxc5 {[%clk 0:35:45]} 24. Nxc7 
{[%clk 0:19:43]} Rxc7 {[%clk 0:36:10]} 25. Rc1 {[%clk 0:20:04]} Bc8 
{[%clk 0:33:02]} 26. Rfd1 {[%clk 0:18:50]} Be6 {[%clk 0:33:26]} 27. Be5 
{[%clk 0:18:11]} Rcc8 {[%clk 0:32:42]} 28. Ba1 {[%clk 0:15:40]} f6 
{[%clk 0:33:00]} 29. Qb2 {[%clk 0:12:20]} Qf7 {[%clk 0:30:57]} 30. Bf1 
{[%clk 0:11:19]} Rd6 {[%clk 0:27:07]} 31. f4 {[%clk 0:09:02]} Rcd8 
{[%clk 0:27:04]} 32. Qc2 {[%clk 0:07:26]} d4 {[%clk 0:26:34]} 33. exd4 
{[%clk 0:07:34]} cxd4 {[%clk 0:26:36]} 34. Bc4 {[%clk 0:07:02]} d3 
{[%clk 0:21:14]} 35. Qf2 {[%clk 0:03:49]} d2 {[%clk 0:21:01]} 36. Rc2 
{[%clk 0:04:16]} Bxc4 {[%clk 0:20:07]} 37. Rxc4 {[%clk 0:03:31]} Qe6 
{[%clk 0:18:26]} 38. Bc3 {[%clk 0:03:35]} Qxh3 {[%clk 0:14:57]} 39. Bxb4 
{[%clk 0:01:25]} axb4 {[%clk 0:14:42]} 40. Qg2 {[%clk 0:01:23]} Qg4 
{[%clk 0:14:36]} 0-1

[Event "21th IPCA World Individual Chp."]
[Site "followchess.com"]
[Date "2022.05.10"]
[Round "2"]
[White "Mikheev, Stanislav"]
[Black "Lipilin, Ilia"]
[Result "1-0"]
[WhiteElo "2333"]
[BlackElo "2198"]
[ECO "A80"]
[WhiteFed "SRB"]
[BlackFed "RUS"]
[FCGameId "1504097650"]
[WhiteFideId "4135920"]
[BlackFideId "54113245"]
[TimeControl "5400+30"]

1. d4 {[%clk 1:29:42]} f5 {[%clk 1:30:51]} 2. Nf3 {[%clk 1:29:08]} Nf6 
{[%clk 1:31:10]} 3. g3 {[%clk 1:29:13]} g6 {[%clk 1:31:26]} 4. Bg2 
{[%clk 1:29:08]} Bg7 {[%clk 1:31:45]} 5. O-O {[%clk 1:29:02]} O-O 
{[%clk 1:32:00]} 6. b3 {[%clk 1:29:20]} d6 {[%clk 1:32:20]} 7. Bb2 
{[%clk 1:29:40]} c6 {[%clk 1:32:11]} 8. c4 {[%clk 1:29:52]} e5 {[%clk 1:24:46]} 
9. dxe5 {[%clk 1:29:56]} Ng4 {[%clk 1:22:23]} 10. Qc2 {[%clk 1:16:03]} dxe5 
{[%clk 1:09:27]} 11. h3 {[%clk 1:08:42]} e4 {[%clk 1:09:46]} 12. hxg4 
{[%clk 1:08:34]} exf3 {[%clk 1:10:03]} 13. Bxf3 {[%clk 1:07:24]} fxg4 
{[%clk 1:10:12]} 14. Bg2 {[%clk 1:07:30]} Na6 {[%clk 1:08:01]} 15. Bxg7 
{[%clk 1:06:28]} Kxg7 {[%clk 1:08:25]} 16. Nd2 {[%clk 1:03:44]} Bf5 
{[%clk 1:05:53]} 17. e4 {[%clk 1:01:31]} Be6 {[%clk 1:06:20]} 18. Qc3+ 
{[%clk 1:00:04]} Kg8 {[%clk 0:59:38]} 19. b4 {[%clk 0:56:37]} Qe7 
{[%clk 0:55:40]} 20. a3 {[%clk 0:56:16]} Rad8 {[%clk 0:55:29]} 21. Rad1 
{[%clk 0:55:32]} Qd6 {[%clk 0:48:58]} 22. Nb3 {[%clk 0:46:06]} Qxd1 
{[%clk 0:20:27]} 23. Rxd1 {[%clk 0:46:35]} Rxd1+ {[%clk 0:20:42]} 24. Bf1 
{[%clk 0:47:05]} Rf3 {[%clk 0:16:20]} 25. Qc2 {[%clk 0:47:06]} Rd8 
{[%clk 0:16:40]} 26. Be2 {[%clk 0:47:21]} Rf6 {[%clk 0:13:37]} 27. Nc1 
{[%clk 0:45:15]} Nb8 {[%clk 0:12:22]} 28. Nd3 {[%clk 0:45:12]} Rdf8 
{[%clk 0:10:46]} 29. Nf4 {[%clk 0:43:57]} Bc8 {[%clk 0:09:32]} 30. e5 
{[%clk 0:38:16]} Rf5 {[%clk 0:08:03]} 31. e6 {[%clk 0:34:38]} Rxf4 
{[%clk 0:07:57]} 32. gxf4 {[%clk 0:34:08]} Bxe6 {[%clk 0:08:23]} 33. Qe4 
{[%clk 0:33:44]} Kf7 {[%clk 0:07:43]} 34. Qe5 {[%clk 0:32:57]} Nd7 
{[%clk 0:04:27]} 35. Qc7 {[%clk 0:32:58]} Rb8 {[%clk 0:04:55]} 36. c5 
{[%clk 0:31:14]} Kf6 {[%clk 0:04:09]} 37. Kh2 {[%clk 0:24:31]} h5 
{[%clk 0:04:19]} 38. Kg3 {[%clk 0:24:54]} g5 {[%clk 0:04:03]} 39. fxg5+ 
{[%clk 0:24:12]} Kxg5 {[%clk 0:04:29]} 40. Qf4+ {[%clk 0:24:32]} Kg6 
{[%clk 0:04:50]} 41. Bd3+ {[%clk 0:19:55]} Kg7 {[%clk 0:05:17]} 42. Qg5+ 
{[%clk 0:20:20]} Kf8 {[%clk 0:05:26]} 43. Qxh5 {[%clk 0:20:18]} Ke7 
{[%clk 0:05:15]} 44. Qg5+ {[%clk 0:20:35]} Nf6 {[%clk 0:05:14]} 45. Qe5 
{[%clk 0:20:41]} Nd7 {[%clk 0:05:13]} 46. Qd6+ {[%clk 0:20:25]} Kf6 
{[%clk 0:01:33]} 47. Bc4 {[%clk 0:20:15]} Re8 {[%clk 0:01:54]} 48. Bxe6 
{[%clk 0:20:31]} Rxe6 {[%clk 0:02:18]} 49. Qxd7 {[%clk 0:20:53]} Re7 
{[%clk 0:02:37]} 50. Qd6+ {[%clk 0:20:50]} Re6 {[%clk 0:02:59]} 51. Qf4+ 
{[%clk 0:21:14]} Kg7 {[%clk 0:03:22]} 52. Qc7+ {[%clk 0:21:34]} 1-0

[Event "21th IPCA World Individual Chp."]
[Site "followchess.com"]
[Date "2022.05.10"]
[Round "2"]
[White "Srimskov, Elishar"]
[Black "Zilberman, Yaacov"]
[Result "1/2-1/2"]
[WhiteElo "1992"]
[BlackElo "2315"]
[ECO "A06"]
[WhiteFed "ISR"]
[BlackFed "ISR"]
[FCGameId "1496304593"]
[WhiteFideId "2807254"]
[BlackFideId "2801612"]
[TimeControl "5400+30"]

1. Nf3 {[%clk 1:30:36]} d5 {[%clk 1:30:44]} 2. e3 {[%clk 1:30:14]} Nf6 
{[%clk 1:30:54]} 3. b3 {[%clk 1:30:17]} c5 {[%clk 1:30:46]} 4. Bb2 
{[%clk 1:30:21]} a6 {[%clk 1:30:57]} 5. d4 {[%clk 1:29:45]} Nc6 {[%clk 1:31:00]} 
6. dxc5 {[%clk 1:28:50]} e6 {[%clk 1:31:10]} 7. c4 {[%clk 1:28:10]} Bxc5 
{[%clk 1:30:54]} 8. cxd5 {[%clk 1:26:12]} exd5 {[%clk 1:31:09]} 9. Be2 
{[%clk 1:25:37]} O-O {[%clk 1:30:45]} 10. O-O {[%clk 1:25:30]} Re8 
{[%clk 1:29:12]} 11. Nc3 {[%clk 1:25:00]} Be6 {[%clk 1:26:46]} 12. Rc1 
{[%clk 1:23:01]} Ba7 {[%clk 1:26:10]} 13. Bd3 {[%clk 1:15:26]} Rc8 
{[%clk 1:23:14]} 14. Ne2 {[%clk 1:12:47]} Bb8 {[%clk 1:16:00]} 15. Ng3 
{[%clk 1:04:04]} Bg4 {[%clk 1:00:06]} 16. Bf5 {[%clk 1:00:30]} Bxf5 
{[%clk 0:55:09]} 17. Nxf5 {[%clk 1:00:41]} h6 {[%clk 0:53:03]} 18. Re1 
{[%clk 0:51:44]} Ne5 {[%clk 0:48:21]} 19. Nxe5 {[%clk 0:35:42]} Bxe5 
{[%clk 0:48:35]} 20. Rxc8 {[%clk 0:21:23]} Qxc8 {[%clk 0:48:42]} 21. Bxe5 
{[%clk 0:20:51]} Rxe5 {[%clk 0:48:51]} 22. Ng3 {[%clk 0:19:31]} Re6 
{[%clk 0:46:24]} 23. Qc1 Rc6 {[%clk 0:45:56]} 24. Qa3 {[%clk 0:15:46]} Rc2 
{[%clk 0:45:26]} 25. h3 {[%clk 0:14:56]} Qc3 {[%clk 0:44:51]} 26. Rf1 
{[%clk 0:13:25]} Qc8 {[%clk 0:37:14]} 27. Qa5 {[%clk 0:11:20]} h5 
{[%clk 0:35:33]} 28. Qa4 {[%clk 0:11:14]} Qe6 {[%clk 0:30:39]} 29. Qf4 
{[%clk 0:10:43]} g6 {[%clk 0:28:06]} 30. a4 {[%clk 0:10:09]} Kg7 
{[%clk 0:26:23]} 31. Re1 {[%clk 0:10:11]} Ne4 {[%clk 0:21:23]} 32. Nxe4 
{[%clk 0:10:12]} Qxe4 {[%clk 0:20:30]} 33. Qxe4 {[%clk 0:08:46]} dxe4 
{[%clk 0:20:56]} 34. Rd1 {[%clk 0:08:56]} Rb2 {[%clk 0:20:45]} 35. Rd4 
{[%clk 0:09:17]} Rb1+ {[%clk 0:20:33]} 36. Kh2 {[%clk 0:09:39]} Rxb3 
{[%clk 0:20:23]} 37. Rxe4 {[%clk 0:10:08]} b5 {[%clk 0:19:26]} 38. axb5 
{[%clk 0:10:27]} axb5 {[%clk 0:19:43]} 39. Kg3 {[%clk 0:10:24]} Rb1 
{[%clk 0:18:56]} 40. Kf4 {[%clk 0:09:53]} b4 {[%clk 0:18:53]} 41. g4 
{[%clk 0:09:22]} 1/2-1/2